Cogmind - Beta 13 @@@ ROGUE MODE // 2024.06.12 @ 23:17:33 Player: Trantor Result: Destroyed by S-10 Pest with Light Assault Rifle Performance ------------- Evolutions (0) 0 Regions Visited (3) 600 Robots Destroyed (15) 75 Value Destroyed (246) 246 Prototype IDs (3) 60 Alien Tech Used (0) 0 Bonus (0) 0 TOTAL SCORE: 981 Bonus ------- None Cogmind --------- Core Integrity 0/250 Matter 249/300 Energy 246/250 System Corruption 2% Temperature Cool (2) Movement Walking (120) Location -10/Subcaves Parts ------- > --- POWER (1) -------- Ion Engine > --- PROPULSION (2) --- Aluminum Leg Aluminum Leg > --- UTILITY (2) ------ Small Storage Unit Targeting Computer > --- WEAPON (2) ------- Light Cannon Light Cannon (fused) > --- INVENTORY (8) ---- Ion Engine Aluminum Leg Compact Wheel High-capacity Matter Pod (29) Structural Scanner Machine Analyzer Light Cannon Makeshift Spear Peak State ------------ > --- POWER ------------ Ion Engine > --- PROPULSION ------- Aluminum Leg Aluminum Leg > --- UTILITY ---------- Small Storage Unit Targeting Computer > --- WEAPON ----------- Light Assault Rifle Light Assault Rifle > --- INVENTORY -------- Light Ion Engine Light Treads Light Treads Compact Wheel High-capacity Matter Pod Machine Analyzer Small Laser Light Assault Rifle [Rating: 8] Favorites ----------- Power Ion Engine Engine Ion Engine Propulsion Aluminum Leg Leg Aluminum Leg Utility Small Storage Unit Storage Small Storage Unit Processor Targeting Computer Weapon Light Cannon Energy Gun EM Pulse Gun Ballistic Gun Light Assault Rifle Ballistic Cannon Light Cannon Build | -11 -10 -10 -10 ------- Run | Yrd Mat Min Sub Slots Evolved . | . . . . Power . | . . . . Propulsion . | . . . . Utility . | . . . . Weapon . | . . . . Parts Attached 12 | . 12 . . Power 1 | . 1 . . Engine 1 | . 1 . . Core . | . . . . Reactor . | . . . . Propulsion 5 | . 5 . . Treads . | . . . . Leg 5 | . 5 . . Wheel . | . . . . Hover . | . . . . Flight . | . . . . Utility 1 | . 1 . . Device . | . . . . Storage . | . . . . Processor 1 | . 1 . . Hackware . | . . . . Protection . | . . . . Artifact . | . . . . Weapon 5 | . 5 . . Energy Gun . | . . . . Energy Cannon . | . . . . Ballistic Gun 3 | . 3 . . Ballistic Cannon 2 | . 2 . . Launcher . | . . . . Special Weapon . | . . . . Impact Weapon . | . . . . Slashing Weapon . | . . . . Piercing Weapon . | . . . . Special Melee Weapon . | . . . . Unidentified Prototypes . | . . . . Parts Lost 1 | . 1 . . Power . | . . . . Propulsion . | . . . . Utility . | . . . . Weapon 1 | . 1 . . Highest Loss Streak 1 | . 1 . . To Critical Strikes . | . . . . Average Slot Usage (%) 99 | . 98 100 100 Engine 14 | . 14 14 14 Leg 28 | . 28 28 28 Storage 14 | . 14 14 14 Processor 13 | . 13 14 14 Ballistic Gun 9 | . 16 . . Ballistic Cannon 16 | . 8 28 28 Naked Turns . | . . . . Heaviest Build 16 | 13 16 16 16 Greatest Support 20 | 20 20 20 20 Greatest Overweight (x) . | . . . . Average Overweight (x) . | . . . . Largest Inventory Capacity 8 | . 8 8 8 Average Capacity 8 | . 8 8 8 Most Carried 8 | . 8 8 8 Average Carried 7 | . 7 7 8 Final Capacity 8 | 8 8 8 8 Final Carried 8 | 6 8 8 8 Class Distribution -------------------- 100% | Mutant Dominant Class ---------------- Mutant | -10/Materials Mutant | -10/Mines Mutant | -10/Subcaves Resources | -11 -10 -10 -10 ----------- Run | Yrd Mat Min Sub Matter Collected 535 | 159 302 74 . Remotely . | . . . . Salvage Created 235 | . 207 28 . Parts 25 | . 18 7 . Haulers Intercepted . | . . . . Recyclers Shooed . | . . . . Parts Field Recycled . | . . . . Retrieved Matter . | . . . . Parts Self-Destructed . | . . . . Prevented . | . . . . Kills | -11 -10 -10 -10 ------- Run | Yrd Mat Min Sub Combat Hostiles Destroyed 15 | . 10 5 . Guns 6 | . 6 . . Cannons 9 | . 4 5 . Classes Destroyed 2 | . 2 . . Swarmer 11 | . 6 5 . Grunt 4 | . 4 . . Best Kill Streak 3 | . 3 3 . Combat Bots Only 3 | . 3 3 . Max Kills in Single Turn 1 | . 1 1 . Gunslinging . | . . . . Exploded . | . . . . Melee . | . . . . Uniques/NPCs Destroyed . | . . . . Combat | -11 -10 -10 -10 -------- Run | Yrd Mat Min Sub Hostile Shots Fired 124 | . 56 39 29 Missed 40 | . 15 8 17 Damage Taken 790 | . 447 261 82 Core 254 | . 165 63 26 Absorbed by Shields . | . . . . Core Remaining (%) 100 | 100 . . . Volleys Fired 44 | . 32 12 . Largest 2 | . 2 2 . Hottest 70 | . 70 70 . Shots Fired 76 | . 52 24 . Gun 36 | . 36 . . Cannon 40 | . 16 24 . Launcher . | . . . . Special . | . . . . Kinetic 71 | . 47 24 . Thermal . | . . . . Explosive . | . . . . Electromagnetic 5 | . 5 . . Robot Hit Streak 6 | . 5 6 . Robot Miss Streak 7 | . 7 1 . Penetration Max . | . . . . Secondary Targets . | . . . . Shots Hit Robots 38 | . 23 15 . Core Hits 20 | . 15 5 . Critical Kills . | . . . . Critical Parts Destroyed . | . . . . Critical Strikes 3 | . 2 1 . Blast 3 | . 2 1 . Melee Attacks . | . . . . Impact . | . . . . Slashing . | . . . . Piercing . | . . . . Sneak Attacks . | . . . . Combat Hostiles . | . . . . Follow-up Attacks . | . . . . Damage Inflicted 588 | . 316 272 . Guns 197 | . 197 . . Cannons 391 | . 119 272 . Explosions . | . . . . Melee . | . . . . Ramming . | . . . . Kinetic 564 | . 292 272 . Thermal . | . . . . Explosive . | . . . . Electromagnetic 24 | . 24 . . Impact . | . . . . Slashing . | . . . . Piercing . | . . . . Highest Corruption 2 | . 2 2 2 Average Corruption 2 | . 2 2 2 Corruption Purged . | . . . . Corruption Blocked . | . . . . Effects 9 | . 5 4 . Message Errors 3 | . 1 2 . Matter Fused 2 | . 1 1 . Heat Flow Errors 1 | . 1 . . Energy Discharges 1 | . 1 . . Parts Fused 1 | . 1 . . Data Loss (minor) 1 | . . 1 . Overload Shots . | . . . . Overflow Damage . | . . . . Projectiles . | . . . . Explosions . | . . . . Melee . | . . . . Knockbacks 8 | . 2 6 . Impact . | . . . . Kinetic 8 | . 2 6 . Secondary . | . . . . Self-Inflicted Damage . | . . . . Shots . | . . . . Rammed . | . . . . Targets Rammed . | . . . . Kicked . | . . . . Crushed . | . . . . Highest Temperature 230 | . 230 54 . Average Temperature 33 | . 39 24 . Received Heat Transfer 96 | . 54 . 42 Siege Activations . | . . . . Robots Corrupted . | . . . . Combat Hostiles . | . . . . Parts Fried . | . . . . Impact Corruptions . | . . . . Robots Melted . | . . . . Combat Hostiles . | . . . . Parts Melted . | . . . . Heat Transferred . | . . . . Parts Sabotaged . | . . . . Parts Stolen . | . . . . Parts Stripped . | . . . . Power Chain Reactions . | . . . . Alert | -11 -10 -10 -10 ------- Run | Yrd Mat Min Sub Peak Influence 157 | . 157 142 . Initial 2 | . . 2 . Average 59 | . 73 38 . Maximum Alert Level . | . . . . Low Security (%) 100 | . 100 100 . Level 1 . | . . . . Level 2 . | . . . . Level 3 . | . . . . Level 4 . | . . . . Level 5 . | . . . . High Security . | . . . . Max Security . | . . . . Squads Dispatched 2 | . 2 . . Investigation 1 | . 1 . . Extermination . | . . . . Reinforcement 1 | . 1 . . Assault . | . . . . Garrison . | . . . . Intercept . | . . . . Searches Triggered . | . . . . Construction Impeded . | . . . . Haulers Reinforced . | . . . . Active Scanning Responses . | . . . . Cargo Convoy Interrupts . | . . . . Stealth | -11 -10 -10 -10 --------- Run | Yrd Mat Min Sub Distress Signals 2 | . 2 . . Communications Jammed . | . . . . Distress Signals . | . . . . Times Spotted 48 | . 23 8 17 Peak Tracking Total 6 | . 4 3 6 Tactical Retreats 4 | . 1 2 1 Traps | -11 -10 -10 -10 ------- Run | Yrd Mat Min Sub Traps Triggered 2 | . 2 . . Indirectly . | . . . . Trap Hack Attempts . | . . . . Triggered . | . . . . Disarmed . | . . . . Reprogrammed . | . . . . Reused . | . . . . Traps Extracted . | . . . . Installed . | . . . . Triggered . | . . . . Machines | -11 -10 -10 -10 ---------- Run | Yrd Mat Min Sub Machines Disabled . | . . . . Max in Single Turn . | . . . . Machines Repaired . | . . . . Machines Dismantled . | . . . . Machines Sabotaged . | . . . . Overloaded Fab Kills . | . . . . Hacking | -11 -10 -10 -10 --------- Run | Yrd Mat Min Sub Machines Accessed 7 | . 7 . . Terminals 7 | . 7 . . Fabricators . | . . . . Repair Stations . | . . . . Recycling Units . | . . . . Scanalyzers . | . . . . Garrison Access . | . . . . Total Hacks 21 | . 21 . . Successful 9 | . 9 . . Failed 12 | . 12 . . Catastrophic 1 | . 1 . . Database Lockouts . | . . . . Manual 14 | . 14 . . Terminals 21 | . 21 . . Fabricators . | . . . . Repair Stations . | . . . . Recycling Units . | . . . . Scanalyzers . | . . . . Garrison Access . | . . . . Terminal Hacks 5 | . 5 . . Robot Analysis 2 | . 2 . . Prototype ID Bank 2 | . 2 . . Level Access Points 1 | . 1 . . Fabricator Hacks . | . . . . Repair Station Hacks . | . . . . Recycling Unit Hacks . | . . . . Scanalyzer . | . . . . Garrison Access Hacks . | . . . . Unauthorized Hacks 4 | . 4 . . Terminals 4 | . 4 . . Botnet 4 | . 4 . . Fabricators . | . . . . Repair Stations . | . . . . Recycling Units . | . . . . Scanalyzers . | . . . . Garrison Access . | . . . . Data Cores Recovered . | . . . . Used . | . . . . Hacking Detections 7 | . 7 . . Full Trace Events . | . . . . Feedback Events . | . . . . Feedback Blocked . | . . . . Robot Schematics Acquired . | . . . . Robots Built . | . . . . Authchips . | . . . . Time . | . . . . Total Robot Build Rating . | . . . . Part Schematics Acquired . | . . . . Parts Built . | . . . . Authchips . | . . . . Time . | . . . . Total Part Build Rating . | . . . . Parts Repaired . | . . . . Time . | . . . . Parts Recycled . | . . . . Recycled Matter . | . . . . Retrieved Matter . | . . . . Retrieved Components . | . . . . Parts Scanalyzed . | . . . . Part Schematics Acquired . | . . . . Parts Damaged . | . . . . Bothacking | -11 -10 -10 -10 ------------ Run | Yrd Mat Min Sub Used RIF Installer . | . . . . Robots Hacked . | . . . . Non-combat . | . . . . Combat . | . . . . Robot Hacks Applied . | . . . . Relay Couplers Released . | . . . . Fabnet Peak Effective % . | . . . . Robots Rewired . | . . . . Allies Hacked . | . . . . Hacks Repelled . | . . . . Allies | -11 -10 -10 -10 -------- Run | Yrd Mat Min Sub Total Allies . | . . . . Largest Group . | . . . . Highest-Rated Group . | . . . . Highest-Rated Ally . | . . . . Total Orders . | . . . . Ally Attacks . | . . . . Total Damage . | . . . . Kills . | . . . . Allies Corrupted . | . . . . Allies Melted . | . . . . Intel | -11 -10 -10 -10 ------- Run | Yrd Mat Min Sub Robot Analysis Total 2 | . 2 . . Derelict Logs Recovered 2 | . . 1 1 Drone Launches . | . . . . Drone Recoveries . | . . . . Exploration | -11 -10 -10 -10 ------------- Run | Yrd Mat Min Sub Turns Passed 1530 | . 894 603 33 Spaces Moved 1136 | 1 641 466 28 Core . | . . . . Treads . | . . . . Legs 1136 | 1 641 466 28 Wheels . | . . . . Hover . | . . . . Flight . | . . . . Fastest Speed 120 | 120 120 120 120 Average Speed 120 | 120 120 120 120 Slowest Speed 120 | 120 120 120 120 Overloaded Moves . | . . . . Propulsion Burnouts . | . . . . Robots Hopped . | . . . . Cave-ins Triggered . | . . . . Exploration Rate (%) 42 | 2 93 72 4 Regions Visited 3 Branch Regions 2 Pre-discovered Areas . | . . . . Known Exits Taken 1 | . . 1 . Unknown Exits Taken 2 | 1 1 . . Scrap Searched 1 | . . 1 . Spaces Dug . | . . . . Terrain Destroyed . | . . . . Melee . | . . . . Projectile . | . . . . AOE . | . . . . Terrain Rammed . | . . . . Walls Destroyed . | . . . . Machines Disabled . | . . . . Actions | -11 -10 -10 -10 --------- Run | Yrd Mat Min Sub Total 1242 | . 727 487 28 Wait 26 | . 20 6 . Move 1133 | . 640 465 28 Hop . | . . . . Pick Up 10 | . 8 2 . Fast Attach 3 | . 3 . . Attach 1 | . 1 . . Detach . | . . . . Swap 8 | . 8 . . Drop 17 | . 15 2 . Fire 44 | . 32 12 . Melee . | . . . . Ram . | . . . . Kick . | . . . . Crush . | . . . . Escape Stasis . | . . . . Rewire . | . . . . Trap . | . . . . Miscellaneous . | . . . . Route ------- -11/Scrapyard -10/Materials (discovered 5 exits: *Mat x3 / [*Min x2]) -10/Mines (discovered 2 exits: *Mat / *Sub) -10/Subcaves (discovered 1 exit: *Rec) History --------- Turn | Location | Event 1 | -11/Scrapyard | Discovered new exit (range 0) 1 | -11/Scrapyard | Entered Materials 146 | -10/Materials | Discovered new exit (range 15) 208 | -10/Materials | Core integrity fell below 50% 298 | -10/Materials | Discovered new exit (range 13) 330 | -10/Materials | Build established: Mutant 419 | -10/Materials | Discovered new exit (range 10) 592 | -10/Materials | Discovered new exit (range 13) 602 | -10/Materials | Identified exit to Materials 895 | -10/Materials | Entered Mines 897 | -10/Mines | Identified exit to Subcaves 950 | -10/Mines | A weapon hastily lodged in a ceiling crevice suddenly fell to the ground 1217 | -10/Mines | Discovered exit to Materials (range 7) 1248 | -10/Mines | Core integrity fell below 20% 1498 | -10/Mines | Entered Subcaves 1499 | -10/Subcaves | Shifting Twisted Machinery released Sub. Optics 1500 | -10/Subcaves | Shifting Twisted Machinery released Sub. Machine Gun 1502 | -10/Subcaves | Identified exit to Recycling 1531 | -10/Subcaves | Destroyed by S-10 Pest with Light Assault Rifle Last Messages --------------- 01285_ K-01 Serf collects debris. 01290_ Acquired 4 matter. 01291_ K-01 Serf collects debris. 01291_ Acquired 3 matter. 01294_ K-01 Serf collects debris. 01294_ Acquired 5 matter. 01311_ K-01 Serf collects debris. 01400_ U-05 Engineer lays Concrete. 01403_ U-05 Engineer builds a Wall. 01496_ T-07 Excavator is excavating. LOCATION=SUBCAVES AMBIENT_HEAT=-10 GOAL=ESCAPE Sub. Optics falls loose from the Twisted Machinery. Sub. Machine Gun falls loose from the Twisted Machinery. 01502_ Acquired derelict log, extracted data. 01527_ S-10 Pest springs to life. 01529_ S-10 Pest destroyed. Map ----- +----------------------------------------------------+ | ?????????????????????????????????????????????????? | | ?????????????????????????????????????????????????? | | ?????????????????????????????????????????????????? | | ?????????????????????????????????????????????????? | | ?????????????????????????????????????????????????? | | ?????????????????????????????????????????????????? | | ?????????????????????????????????????????????????? | | ?????????????????????????????????????????????????? | | ?????????????????????????????????????????????????? | | ???????????????????????????????????????????? %???? | | ?????????????????????????????????????????? ???? | | ????????????????????????????#########??? ???? | | ???????????????????????????## # ## ??????? | | ?????????????????????####??# #?????????? | | ???????????????????### "####"[ #??????????? | | ????? ### ???##??## "" """ #??????????????? | | ???? ## ### """!" ####??????????????? | | ???? " # # ###?????????????????? | | ???? ## ######???????????????????? | | ???? """ #####????????????????????????? | | ???? ###"""" #?########??????????????????? | | ?????? ?????###"" #?#" """#??????????????????? | | ????????????????##"" #?# s "#??????????????????? | | ????????????????# #### "#??????????????????? | | ????????????????## s t""##?????????????????? | | ????????????????# @ >#?????????????????? | | ????????????????## *% t""##?????????????????? | | ?????????????????# #### "#??????????????????? | | ????????????????# ##??# s "#??????????????????? | | ???????????????# ????#" """#??????????????????? | | ?????????????? #????########??????????????????? | | ?????????????# #???????????????????????????????? | | ?????????????## ????????????????????????????????? | | ??????????????# ????????????????????????????????? | | ?????????????? ????????????????????????????????? | | ????????????? ?????????????????????????????????? | | ????????????? ?????????????????????????????????? | | ????????????? ? ?????????????????????????????????? | | ?????????????????????????????????????????????????? | | ?????????????????????????????????????????????????? | | ?????????????????????????????????????????????????? | | ?????????????????????????????????????????????????? | | ?????????????????????????????????????????????????? | | ?????????????????????????????????????????????????? | | ?????????????????????????????????????????????????? | | ?????????????????????????????????????????????????? | | ?????????????????????????????????????????????????? | | ?????????????????????????????????????????????????? | | ?????????????????????????????????????????????????? | | ?????????????????????????????????????????????????? | +----------------------------------------------------+ Best States ------------- Heat Dissipation 25 Energy Generation 10 Energy Capacity 250 Matter Stores 300 Matter Capacity 300 Sight Range 16 Terrain Scan Density 10 Evasion (%) 55 Targeting Accuracy 5 Item Schematics ----------------- None Robot Schematics ------------------ None Fabricated ------------ Nothing Alien Tech Used ----------------- None Achievements -------------- None Challenges ------------ None Game ------ Seed CannonGravmagSlayer Manual? 0 Play Time 00:14:56 Cumulative 298.7 hours Start 2024.06.12 @ 23:02:52 End 2024.06.12 @ 23:17:33 Sessions 1 Manual Loads 0 Difficulty Rogue Special Mode None Game No. 183 Rogue 139 Adventurer 44 Explorer 0 Win Type - Total 2 Types 2/0/0/0/0/0/0/0/0 Lore% 58 Gallery% 64 Achievement% 58 Wizard Run 0 Options --------- Layout 2 ASCII 0 Keyboard 1 Movement Vi Keybinds 1 Fullscreen 2 Font 24/Smallcaps Map View 50x44 Zoom Use 0% Tactical HUD 1 Map Filters NONE Filters NONE Steam 1 RUN: 195c3a91-a449-40d4-884a-6e6899783af2